Workbook

Sheet Sheet1
E1: Reports | F1: Total Annual | G1: Est. No. of | H1: Est. Total | I1: Wage | J1: Cost to the
A2: Section of | C2: Form No. | D2: Est. No. of | E2: Filed | F2: Responses | G2: Man hours | H2: Man-hours | I2: Class (per | J2: Public
A3: Regulation | B3: Title | C3: (if Any) | D3: Respondents | E3: Annually | F3: (D) x (E) | G3: Per Response | H3: (F) x (G) | I3: hour) | J3: (H) x (I)
A5: (A) | B5: (B) | C5: (C) | D5: (D) | E5: (E) | F5: (F) | G5: (G) | H5: (H) | I5: (I) | J5: (J)
A6: NONE
B8: REPORTING REQUIREMENTS - NON FORMS
A9: 4274.314(b)(14)(iv) - 100% of respondents are not-for-profit | B9: Operating plans for revolving line of credit | C9: written | D9: 25 | E9: 1 | F9: =(D9)*(E9) -> 25 | G9: 5 | H9: =(F9)*(G9) -> 125 | I9: 83 | J9: =(H9)*(I9) -> 10,375
F10: =(D10)*(E10) -> 0 | H10: =(F10)*(G10) -> 0 | I10: 73 | J10: 0
A11: 4274.326(a)(2) - 100% of respondents are not-for-profit | B11: Assignments of Security | C11: Written | D11: 5 | E11: 1 | F11: =(D11)*(E11) -> 5 | G11: 1.5 | H11: =(F11)*(G11) -> 8 | I11: 83 | J11: 623
B12: Activities | F12: =(#REF!)*(#REF!) ->  | H12: =(F6)*(G12) -> 0 | I12: 83 | J12: 0
A13: 4274.332(b)(4) - 100% of respondents are not-for-profit | B13: Jusitification for amount of reserve | C13: Written | D13: 15 | E13: 1 | F13: 15 | G13: 2 | H13: =(F13)*(G13) -> 30 | I13: 83 | J13: 2,490
A14: 4274.337(a) - 100% of respondents are not-for-profit | B14: Intergovernmental review comments | C14: written | D14: 80 | E14: 1 | F14: 240 | G14: 2 | H14: =(F14)*(G14) -> 480 | I14: 83 | J14: 39,840
F15: 0 | H15: 0 | I15: 83 | J15: 0
A16: 4274.338(a)(5) - 100% of respondents are not-for-profit | B16: Request for advance of funds | C16: written or Form RD 440-11 (0575-0015) | D16: 27 | E16: 1 | F16: 27 | G16: 1 | H16: =(F16)*(G16) -> 27 | I16: 83 | J16: =(H16)*(I16) -> 2,241
A17: 4274.338(a)(7)(v)(c) - 100% of respondents are not-for-profit | B17: Evidence of fidelity bond coverage | C17: written | D17: 240 | E17: 1 | F17: =(D17)*(E17) -> 240 | G17: 1.5 | H17: =(F17)*(G17) -> 360 | I17: 83 | J17: =(H17)*(I17) -> 29,880
A18: 4274.343(a)(2) - 100% of respondents are not-for-profit | B18: Workplan | C18: written | D18: 240 | E18: 1 | F18: =(D18)*(E18) -> 240 | G18: 18 | H18: =(F18)*(G18) -> 4320 | I18: 83 | J18: =(H18)*(I18) -> 358,560
A19: 4274.343(a)(9) - 100% of respondents are not-for-profit | B19: Certification of lack of financing | C19: written | D19: 240 | E19: 1 | F19: =(D19)*(E19) -> 240 | G19: 1.5 | H19: =(F19)*(G19) -> 360 | I19: 83 | J19: =(H19)*(I19) -> 29,880
A20: 4274.344(c)(2)(ii) - 100% of respondents are not-for-profit | B20: Low-income counties | C20: written | D20: 37 | E20: 1 | F20: 37 | G20: 2 | H20: 74 | I20: 83 | J20: 6,142
A21: 4274.344(c)(2)(iv) - 100% of respondents are business or other for-profit | B21: Ultimate recipients certification of low-income work force | C21: written | D21: 24 | E21: 1 | F21: 24 | G21: 0.5 | H21: 12 | I21: 83 | J21: 996
F22: 0 | H22: 0 | I22: 83 | J22: 0
A23: 4274.356 - 100% of respondents are not-for-profit | B23: Loan Closing Certifications | C23: written | D23: 240 | E23: 1 | F23: 240 | G23: 1 | H23: 240 | I23: 83 | J23: 19,920
A24: 4274.361(b)(1) - 100% of respondents are not-for-profit | B24: Certifications to make loans to ultimate recipients | C24: written | D24: 240 | E24: 1 | F24: 240 | G24: 1.5 | H24: 360 | I24: 83 | J24: 29,880
A25: 4274.373 - 100% of respondents are not-for-profit | B25: Request for Appeal | C25: written | D25: 5 | E25: 1 | F25: 5 | G25: 2 | H25: 10 | I25: 83 | J25: 830
B26: SUBTOTAL | F26: =F9+F11+F13+F14+F16+F17+F18+F19+F20+F21+F23+F24+F25 -> 1,578 | H26: =H9+H11+H13+H14+H16+H17+H18+H19+H20+H21+H23+H24+H25 -> 6,406 | J26: =J9+J11+J13+J14+J16+J17+J18+J19+J20+J21+J23+J24+J25 -> 531,657
B28: FORMS APPROVED WITH THIS DOCKET
F30: =(D30)*(E30) -> 0 | H30: =(F30)*(G30) -> 0 | J30: =(H30)*(I30) -> 0
F31: 0 | H31: 0 | J31: 0
F32: 0 | H32: 0 | J32: 0
F34: 0 | H34: 0 | J34: 0
B35: Ineligibility & Vol. Excl. | F35: 0 | H35: 0 | J35: 0
B36: Lower Tier Cov. Trans. | F36: 0 | H36: 0 | J36: 0
F37: 0 | H37: 0 | I37: 83 | J37: 0
A38: 5274.338 - 100% of respondents are not-for-profit | B38: Loan Agreement | C38: 4274-4 | D38: 27 | E38: 1 | F38: =D38*E38 -> 27 | G38: 1.5 | H38: 40.5 | I38: 83 | J38: =I38*H38 -> 3,362
A39: 4274.338 - 100% of respondents are not-for-profit | B39: Supplemental Loan Agreement | C39: 4274-5 | D39: 14 | E39: 1 | F39: 14 | G39: 1 | H39: 14 | I39: 83 | J39: 1,162
F40: 0 | H40: 0 | I40: 83 | J40: 0
D41: 100 | E41: 1 | F41: 100 | G41: 0.25 | H41: 25 | I41: 83 | J41: 2,075
A42: 4274.338(b)(9) - 100% of respondents are not-for-profit | B42: Promissory Note | C42: 4274-3 | D42: 27 | E42: 1 | F42: 27 | G42: 1.5 | H42: 41 | I42: 83 | J42: 3,362
F43: 0 | H43: 0 | I43: 83 | J43: 0
A44: 4274.343(a)(1) - 100% of respondents are not-for-profit | B44: Application for Loan (IRP) | C44: 4274-1 | D44: 240 | E44: 1 | F44: 240 | G44: 56 | H44: 13,440 | I44: 83 | J44: 1,115,520
A46: 4274.350 - 100% of respondents are not-for-profit | B46: Letter of Intent to Meet Conditions | C46: 1942-46 (0575-0015) | D46: 240 | E46: 1 | F46: =(D46)*(E46) -> 240 | G46: 1 | H46: =(F46)*(G46) -> 240 | I46: 83 | J46: =(H46)*(I46) -> 19,920
A47: 4274.337(B) - 100% of respondents are not-for-profit | B47: Request for Environmental Information | C47: 1940-20 (0575-0094) | D47: 240 | E47: 1 | F47: =D47*E47 -> 240 | G47: 6 | H47: =F47*G47 -> 1,440 | I47: 83 | J47: =H47*I47 -> 119,520
A48: 4274.338(b)(4)(ii)© - 100% of respondents are not-for-profit | B48: Report of IRP/RDLF | C48: 1951-4 (0570-0015) | D48: 240 | E48: 1 | F48: =D48*E48 -> 240 | G48: 4 | H48: =F48*G48 -> 960 | I48: 83 | J48: =H48*I48 -> 79,680
A49: 4274.343(a)(7) - 100% of respondents are not-for-profit | B49: Assurance Agreement | C49: 400-4 (0575-0018) | D49: 240 | E49: 1 | F49: =D49*E49 -> 240 | G49: 0.25 | H49: =F49*G49 -> 60 | I49: 83 | J49: =H49*I49 -> 4,980
A50: 4274.326(a)(3) - 100% of respondents are not-for-profit | B50: Deposit Agreement | C50: 402-1 (0575-0158) | D50: 240 | E50: 1 | F50: =D50*E50 -> 240 | G50: 0.08 | H50: =F50*G50 -> 19.2 | I50: 83 | J50: =H50*I50 -> 1,594
F51: =(D51)*(E51) -> 0 | H51: =(F51)*(G51) -> 0 | J51: =(H51)*(I51) -> 0
F52: =(D52)*(E52) -> 0 | H52: =(F52)*(G52) -> 0 | J52: =(H52)*(I52) -> 0
A53: 4274.337(c)(4) | B53: Compliance Review | C53: 400-8 (0575-0018) | D53: 192 | E53: 1 | F53: 192 | G53: 8 | H53: 1536 | I53: 83 | J53: 127,488
A54: 427.337(c)(4) - 100% of respondents are not-for-profit | B54: Compliance Review | C54: 400-8 (0575-0018) | D54: 240 | E54: 1 | F54: =D54*E54 -> 240 | G54: 8 | H54: =F54*G54 -> 1920 | I54: 83 | J54: =H54*I54 -> 159,360
B55: SUBTOTAL | F55: =F38+F39+F42+F44+F46+F47+F48+F49+F50+F54 -> 1,748 | H55: =H38+H39+H42+H44+H46+H47+H48+H49+H50+H54 -> 18,174 | J55: =J38+J39+J42+J44+J46+J47+J48+J49+J50+J54 -> 1,508,459
B56: TOTAL | F56: =F26+F55 -> 3,326 | H56: =H26+H55 -> 24,580 | J56: =J26+J55 -> 2,040,115
